Cogmind - Beta 9.6 @@@ ROGUE MODE // 2020.08.22 @ 03:41:42 Player: Cracklepappy Result: Destroyed by as-36313 with Assembled F-torch Performance ------------- Evolutions (0) 0 Regions Visited (3) 600 Robots Destroyed (2) 10 Value Destroyed (16) 16 Prototype IDs (22) 440 Alien Tech Used (0) 0 Bonus (297) 297 TOTAL SCORE: 1363 Bonus ------- Aligned with FarCom 300 Friendly Fire -3 Cogmind --------- Core Integrity 0/250 Matter 285/300 Energy 100/100 System Corruption 0% Temperature Cool (20) Movement Core (550) Ox10 Location -10/Exiles Parts ------- > --- POWER (1) -------- (None) > --- PROPULSION (2) --- Light Treads > --- UTILITY (2) ------ Large Storage Unit Large Storage Unit > --- WEAPON (2) ------- (None) > --- INVENTORY (16) --- Light Treads Compact Wheel Large Storage Unit Large Storage Unit Superbattery (2000) Sensor Array Light Armor Plating Light Armor Plating Trap Reconfigurator PSU Rigger Assault Rifle Light Cannon Peak State ------------ > --- POWER ------------ Light Ion Engine > --- PROPULSION ------- Light Treads Wheel > --- UTILITY ---------- Large Storage Unit Trap Reconfigurator > --- WEAPON ----------- Medium Laser Medium Laser > --- INVENTORY -------- Fission Core Light Treads Compact Wheel Large Storage Unit Large Storage Unit Superbattery PSU Rigger Assault Rifle Light Assault Rifle Mining Laser [Rating: 18] Favorites ----------- Power Light Ion Engine Engine Light Ion Engine Propulsion Light Treads Treads Light Treads Wheel Wheel Utility Large Storage Unit Device Trap Reconfigurator Storage Large Storage Unit Weapon Medium Laser Energy Gun Medium Laser Build | -11 -10 -10 -10 ------- Run | Scr Mat Min Exi Slots Evolved . | . . . . Power . | . . . . Propulsion . | . . . . Utility . | . . . . Weapon . | . . . . Parts Attached 19 | 8 3 . 8 Power 1 | 1 . . . Engine 1 | 1 . . . Core . | . . . . Reactor . | . . . . Propulsion 3 | 3 . . . Treads 1 | 1 . . . Leg . | . . . . Wheel 2 | 2 . . . Hover . | . . . . Flight . | . . . . Utility 11 | 2 1 . 8 Device 4 | . . . 4 Storage 7 | 2 1 . 4 Processor . | . . . . Hackware . | . . . . Protection . | . . . . Artifact . | . . . . Weapon 4 | 2 2 . . Energy Gun 4 | 2 2 . . Energy Cannon . | . . . . Ballistic Gun . | . . . . Ballistic Cannon . | . . . . Launcher . | . . . . Special Weapon . | . . . . Impact Weapon . | . . . . Slashing Weapon . | . . . . Piercing Weapon . | . . . . Special Melee Weapon . | . . . . Unidentified Prototypes . | . . . . Parts Lost 4 | . . . 4 Power 1 | . . . 1 Propulsion 1 | . . . 1 Utility . | . . . . Weapon 2 | . . . 2 Highest Loss Streak 4 | . . . 4 Average Slot Usage (%) 99 | . 100 100 99 Engine 14 | . 14 14 14 Treads 14 | . 14 14 14 Wheel 14 | . 14 14 14 Device 1 | . . . 1 Storage 26 | . 28 28 26 Energy Gun 28 | . 28 28 28 Naked Turns . | . . . . Heaviest Build 39 | 13 27 27 39 Greatest Support 20 | 20 10 10 10 Greatest Overweight (x) 12 | 2 2 2 12 Average Overweight (x) 2 | . 1 2 2 Largest Inventory Capacity 16 | 8 12 12 16 Average Capacity 12 | 6 8 12 13 Most Carried 16 | 7 11 12 16 Average Carried 11 | 3 8 11 12 Final Capacity 16 | 8 12 12 16 Final Carried 12 | 7 11 12 12 Class Distribution -------------------- 100% | Mutant Dominant Class ---------------- Mutant | -10/Materials Mutant | -10/Mines Mutant | -10/Exiles Resources | -11 -10 -10 -10 ----------- Run | Scr Mat Min Exi Matter Collected 400 | 280 12 68 40 Remotely . | . . . . Salvage Created 93 | 81 12 . . Parts 4 | 2 2 . . Haulers Intercepted . | . . . . Recyclers Shooed . | . . . . Parts Field Recycled . | . . . . Retrieved Matter . | . . . . Parts Self-Destructed . | . . . . Prevented . | . . . . Kills | -11 -10 -10 -10 ------- Run | Scr Mat Min Exi Combat Hostiles Destroyed 1 | . 1 . . Guns 1 | . 1 . . Classes Destroyed 2 | 1 1 . . Recycler 1 | 1 . . . Swarmer 1 | . 1 . . Best Kill Streak 1 | 1 1 . . Combat Bots Only 1 | . 1 . . Max Kills in Single Turn 1 | 1 1 . . Gunslinging . | . . . . Exploded . | . . . . Melee . | . . . . Uniques/NPCs Destroyed . | . . . . Combat | -11 -10 -10 -10 -------- Run | Scr Mat Min Exi Damage Taken 601 | . 92 . 509 Core 252 | . 51 . 201 Absorbed by Shields . | . . . . Core Remaining (%) 100 | 100 . . . Volleys Fired 14 | 10 2 . 2 Largest 2 | 2 2 . 2 Hottest 100 | 80 100 . 100 Shots Fired 28 | 20 4 . 4 Gun 28 | 20 4 . 4 Cannon . | . . . . Launcher . | . . . . Special . | . . . . Kinetic . | . . . . Thermal 28 | 20 4 . 4 Explosive . | . . . . Electromagnetic . | . . . . Robot Hit Streak 4 | 4 1 . 2 Robot Miss Streak 2 | 2 2 . 2 Penetration Max . | . . . . Secondary Targets . | . . . . Shots Hit Robots 14 | 11 1 . 2 Core Hits 3 | 2 1 . . Critical Hits . | . . . . Critical Kills . | . . . . Critical Parts Destroyed . | . . . . Melee Attacks . | . . . . Impact . | . . . . Slashing . | . . . . Piercing . | . . . . Sneak Attacks . | . . . . Combat Hostiles . | . . . . Follow-up Attacks . | . . . . Damage Inflicted 128 | 101 13 . 14 Guns 128 | 101 13 . 14 Cannons . | . . . . Explosions . | . . . . Melee . | . . . . Ramming . | . . . . Kinetic . | . . . . Thermal 128 | 101 13 . 14 Explosive . | . . . . Electromagnetic . | . . . . Impact . | . . . . Slashing . | . . . . Piercing . | . . . . Highest Corruption . | . . . . Average Corruption . | . . . . Corruption Purged . | . . . . Overload Shots . | . . . . Overflow Damage . | . . . . Projectiles . | . . . . Explosions . | . . . . Melee . | . . . . Knockbacks . | . . . . Impact . | . . . . Kinetic . | . . . . Secondary . | . . . . Self-Inflicted Damage . | . . . . Shots . | . . . . Rammed . | . . . . Targets Rammed . | . . . . Kicked . | . . . . Crushed . | . . . . Highest Temperature 90 | 90 78 . 59 Average Temperature 42 | 46 43 . 27 Received Heat Transfer 140 | . . . 140 Siege Activations . | . . . . Robots Corrupted . | . . . . Combat Hostiles . | . . . . Parts Fried . | . . . . Impact Corruptions . | . . . . Robots Melted . | . . . . Combat Hostiles . | . . . . Parts Melted 1 | 1 . . . Heat Transferred 308 | 225 37 . 46 Parts Sabotaged . | . . . . Parts Stolen . | . . . . Parts Stripped . | . . . . Power Chain Reactions . | . . . . Missiles Intercepted . | . . . . Alert | -11 -10 -10 -10 ------- Run | Scr Mat Min Exi Peak Influence 53 | 5 53 20 . Average Influence 16 | 1 23 20 . Maximum Alert Level . | . . . . Low Security (%) 100 | 100 100 100 . Level 1 . | . . . . Level 2 . | . . . . Level 3 . | . . . . Level 4 . | . . . . Level 5 . | . . . . High Security . | . . . . Max Security . | . . . . Squads Dispatched . | . . . . Investigation . | . . . . Extermination . | . . . . Reinforcement . | . . . . Assault . | . . . . Garrison . | . . . . Intercept . | . . . . Construction Impeded . | . . . . Haulers Reinforced . | . . . . Stealth | -11 -10 -10 -10 --------- Run | Scr Mat Min Exi Distress Signals 2 | . 2 . . Communications Jammed . | . . . . Distress Signals . | . . . . Times Spotted 11 | . 3 . 8 Peak Tracking Total 9 | . 2 . 9 Tactical Retreats . | . . . . Traps | -11 -10 -10 -10 ------- Run | Scr Mat Min Exi Traps Triggered 1 | . 1 . . Indirectly . | . . . . Trap Hack Attempts . | . . . . Triggered . | . . . . Disarmed . | . . . . Reprogrammed . | . . . . Reused . | . . . . Traps Extracted . | . . . . Installed . | . . . . Triggered . | . . . . Power Sources Rigged 1 | . . . 1 Machines | -11 -10 -10 -10 ---------- Run | Scr Mat Min Exi Machines Disabled . | . . . . Max in Single Turn . | . . . . Machines Sabotaged . | . . . . Garrisons Compromised . | . . . . Overloaded Fab Kills . | . . . . Fab Network Shutdowns . | . . . . Hacking | -11 -10 -10 -10 --------- Run | Scr Mat Min Exi Machines Accessed 3 | . 2 . 1 Terminals 2 | . 2 . . Fabricators . | . . . . Repair Stations . | . . . . Recycling Units . | . . . . Scanalyzers . | . . . . Garrison Access . | . . . . Total Hacks 5 | . 4 . 1 Successful 3 | . 2 . 1 Failed 2 | . 2 . . Catastrophic . | . . . . Database Lockouts . | . . . . Manual 5 | . 4 . 1 Terminals 4 | . 4 . . Fabricators . | . . . . Repair Stations . | . . . . Recycling Units . | . . . . Scanalyzers . | . . . . Garrison Access . | . . . . Terminal Hacks 3 | . 2 . 1 Part Schematic 1 | . 1 . . Branch Access Points 1 | . 1 . . EX-Prototype ID Bank 1 | . . . 1 Fabricator Hacks . | . . . . Repair Station Hacks . | . . . . Recycling Unit Hacks . | . . . . Scanalyzer . | . . . . Garrison Access Hacks . | . . . . Unauthorized Hacks . | . . . . Terminals . | . . . . Fabricators . | . . . . Repair Stations . | . . . . Recycling Units . | . . . . Scanalyzers . | . . . . Garrison Access . | . . . . Data Cores Recovered . | . . . . Used . | . . . . Hacking Detections 1 | . 1 . . Full Trace Events . | . . . . Feedback Events . | . . . . Feedback Blocked . | . . . . Robot Schematics Acquired . | . . . . Robots Built . | . . . . Matter . | . . . . Time . | . . . . Total Robot Build Rating . | . . . . Part Schematics Acquired 1 | . 1 . . Parts Built . | . . . . Matter . | . . . . Time . | . . . . Total Part Build Rating . | . . . . Parts Repaired . | . . . . Time . | . . . . Parts Recycled . | . . . . Recycled Matter . | . . . . Retrieved Matter . | . . . . Retrieved Components . | . . . . Parts Scanalyzed . | . . . . Part Schematics Acquired . | . . . . Parts Damaged . | . . . . Bothacking | -11 -10 -10 -10 ------------ Run | Scr Mat Min Exi Used RIF Installer . | . . . . Robots Hacked . | . . . . Non-combat . | . . . . Combat . | . . . . Robot Hacks Applied . | . . . . Relay Couplers Released . | . . . . Robots Rewired . | . . . . Allies Hacked . | . . . . Hacks Repelled . | . . . . Allies | -11 -10 -10 -10 -------- Run | Scr Mat Min Exi Total Allies . | . . . . Largest Group . | . . . . Highest-Rated Group . | . . . . Highest-Rated Ally . | . . . . Total Orders . | . . . . Ally Attacks . | . . . . Total Damage . | . . . . Kills . | . . . . Allies Corrupted . | . . . . Allies Melted . | . . . . Intel | -11 -10 -10 -10 ------- Run | Scr Mat Min Exi Robot Analysis Total . | . . . . Derelict Logs Recovered 1 | . . 1 . Drone Launches . | . . . . Drone Recoveries . | . . . . Exploration | -11 -10 -10 -10 ------------- Run | Scr Mat Min Exi Turns Passed 1426 | 119 163 130 1014 Spaces Moved 1292 | 80 156 130 926 Core 8 | 7 . . 1 Treads 1 | 1 . . . Legs . | . . . . Wheels 1283 | 72 156 130 925 Hover . | . . . . Flight . | . . . . Fastest Speed 50 | 50 90 100 100 Average Speed 101 | 89 91 100 104 Slowest Speed 650 | 160 100 100 650 Overloaded Moves . | . . . . Propulsion Burnouts . | . . . . Robots Hopped . | . . . . Cave-ins Triggered . | . . . . Exploration Rate (%) 38 | 4 35 27 88 Regions Visited 3 Branch Regions 2 Pre-discovered Areas . | . . . . Known Exits Taken 1 | . 1 . . Unknown Exits Taken 2 | 1 . 1 . Scrap Searched 3 | . . 3 . Spaces Dug . | . . . . Terrain Destroyed . | . . . . Melee . | . . . . Projectile . | . . . . AOE . | . . . . Actions | -11 -10 -10 -10 --------- Run | Scr Mat Min Exi Total 1376 | 103 173 130 970 Wait . | . . . . Move 1289 | 79 155 129 926 Hop . | . . . . Pick Up 31 | 6 7 1 17 Fast Attach 13 | 7 2 . 4 Attach 2 | . . . 2 Detach 2 | . . . 2 Swap 4 | 1 1 . 2 Drop 20 | . 6 . 14 Fire 14 | 10 2 . 2 Melee . | . . . . Ram . | . . . . Kick . | . . . . Crush . | . . . . Escape Stasis . | . . . . Rewire . | . . . . Trap 1 | . . . 1 Miscellaneous . | . . . . Route ------- -11/Scrapyard -10/Materials (discovered 2 exits: *Min x2) -10/Mines -10/Exiles (discovered 1 exit: [*Min]) History --------- Turn | Location | Event 13 | -11/Scrapyard | Discovered new exit (range 16) 120 | -11/Scrapyard | Entered Materials 163 | -10/Materials | Identified exit to Mines 283 | -10/Materials | Entered Mines 311 | -10/Mines | Build established: Mutant 315 | -10/Mines | Learned Materials terminal intel 393 | -10/Mines | Deemed a non-threat by the Exiles lab entrance 394 | -10/Mines | Discovered new exit (range 5) 413 | -10/Mines | Entered Exiles 426 | -10/Exiles | Discovered new exit (range 15) 437 | -10/Exiles | Met 8R-AWN 455 | -10/Exiles | Met EX-HEX 483 | -10/Exiles | Met EX-BIN 496 | -10/Exiles | Aligned with FarCom system 497 | -10/Exiles | Given EX-Vault access code 520 | -10/Exiles | Opened EX-Vault 541 | -10/Exiles | Warned to stay clear of 0b10 Research branches 569 | -10/Exiles | Met EX-DEC 670 | -10/Exiles | Visited The Gauntlet 901 | -10/Exiles | Found Superbattery 905 | -10/Exiles | Found Trap Reconfigurator 909 | -10/Exiles | Found PSU Rigger 1399 | -10/Exiles | Attacked by the Exiles 1421 | -10/Exiles | Core integrity fell below 50% 1426 | -10/Exiles | Core integrity fell below 20% 1427 | -10/Exiles | Destroyed by as-36313 with Assembled F-torch Last Messages --------------- 01420_ Penetrated by HV Slug. 01420_ HV Slug penetrates Machine. 01420_ Machine disabled. 01420_ Penetrated by HV Slug. 01420_ Wheel destroyed. 01420_ HV Slug penetrates Wall. 01422_ Penetrated by HV Slug. 01422_ Med. Laser destroyed. 01422_ HV Slug penetrates as-32729. 01422_ Penetrated by HV Slug. 01422_ HV Slug penetrates as-32729. 01422_ as-32729 suffers critical hit. 01424_ Med. Laser destroyed. 01424_ Lgt. Ion Engine destroyed. 01425_ Penetrated by HV Slug. 01425_ HV Slug penetrates as-32729. 01425_ Penetrated by HV Slug. 01425_ HV Slug penetrates as-32729. 01425_ as-32729 suffers critical hit. 01425_ as-32729 destroyed. Map ----- +----------------------------------------------------+ | ?????????????????????????????????????????????????? | | ?????????????????????????????????????????????????? | | ?????????????????????????????????????????????????? | | ?????????????????????????????????????????????????? | | ?????????????????????????????????????????????????? | | ?????????????????????????????????????????????????? | | ?????????????????????????????????????????????????? | | ?????????????????????????????????????????????????? | | ?????????????????????????????????????????????????? | | ?????????????????????????????????????????????????? | | ???????????????????????????????????????# ????????? | | ???????????????????????????????????????